[Event "SVK Extraliga 2019-20"]
[Site "Slovakia"]
[Date "2020.01.18"]
[Round "5.3"]
[White "Vrtiakova, Anna"]
[Black "Rigo, Zsolt"]
[Result "0-1"]
[ECO "B41"]
[WhiteElo "1995"]
[BlackElo "2401"]
[Annotator "ChessBase"]
[PlyCount "54"]
[EventDate "2019.10.19"]
[EventType "team-tourn"]
[EventCountry "SVK"]
[SourceTitle "playchess.com"]
[Source "ChessBase"]
[SourceQuality "1"]
[WhiteTeam "Bratislava"]
[BlackTeam "Streda"]
[TimeControl "40/5400+30:1800+30"]

1. e4 {[%emt 0:00:00]} c5 {[%emt 0:00:03]} 2. Nf3 {[%emt 0:00:00]} e6 {[%emt 0:01:10]} 3. d4 {[%emt 0:00:13]} cxd4 {[%emt 0:00:07]} 4. Nxd4 {[%emt 0:00:07]} a6 {[%emt 0:00:09]} 5. Nc3 {[%emt 0:10:14]} Qc7 {[%emt 0:01:54]} 6. a3 {[%emt 0:01:12]} Nf6 {[%emt 0:00:48]} 7. Bd3 {[%emt 0:02:40]} Bc5 {[%emt 0:03:35]} 8. Nb3 {[%emt 0:00:55]} Be7 {[%emt 0:01:59]} 9. f4 {[%emt 0:03:24]} d6 {[%emt 0:01:25]} 10. Be3 {[%emt 0:03:39]} b5 {[%emt 0:03:17]} 11. O-O {[%emt 0:12:54]} Bb7 {[%emt 0:04:47]} 12. Qe2 {[%emt 0:07:35]} Nbd7 {[%emt 0:07:31]} 13. Rae1 {[%emt 0:04:01]} Rc8 {[%emt 0:01:19]} 14. Bd2 {[%emt 0:04:45]} e5 {[%emt 0:09:55]} 15. Nd1 {[%emt 0:04:05]} O-O {[%emt 0:10:11]} 16. h3 {[%emt 0:03:26]} Rfe8 {[%emt 0:00:37]} 17. Qf2 {[%emt 0:01:39]} d5 {[%emt 0:05:46]} 18. fxe5 {[%emt 0:07:35]} Nxe5 {[%emt 0:00:34]} 19. Nc3 {[%emt 0:03:19]} dxe4 {[%emt 0:05:17]} 20. Nxe4 {[%emt 0:14:00]} Nxd3 {[%emt 0:00:33]} 21. cxd3 {[%emt 0:00:10]} Bd5 {[%emt 0:02:52]} 22. Nd4 {[%emt 0:01:46]} Nxe4 {[%emt 0:02:45]} 23. Rxe4 {[%emt 0:03:19]} Bxe4 {[%emt 0:04:52]} 24. Qxf7+ {[%emt 0:00:20]} Kh8 {[%emt 0:00:02]} 25. dxe4 {[%emt 0:01:18]} Bc5 {[%emt 0:00:23]} 26. Bc3 {[%emt 0:06:39]} Qxf7 {[%emt 0:01:37]} 27. Rxf7 {[%emt 0:00:04]} Rcd8 {[%emt 0:00:21]} 0-1

[Event "SVK Extraliga 2019-20"]
[Site "Slovakia"]
[Date "2020.01.18"]
[Round "5.4"]
[White "Simacek, Pavel"]
[Black "Hrabusa, Matej"]
[Result "1/2-1/2"]
[ECO "B53"]
[WhiteElo "2469"]
[BlackElo "2364"]
[Annotator "ChessBase"]
[PlyCount "114"]
[EventDate "2019.10.19"]
[EventType "team-tourn"]
[EventCountry "SVK"]
[SourceTitle "playchess.com"]
[Source "ChessBase"]
[SourceQuality "1"]
[WhiteTeam "Snina"]
[BlackTeam "Liptovska"]
[TimeControl "40/5400+30:1800+30"]

1. e4 {[%emt 0:00:00]} c5 {[%emt 0:00:00]} 2. Nf3 {[%emt 0:00:00]} d6 {[%emt 0:00:00]} 3. d4 {[%emt 0:02:25]} cxd4 {[%emt 0:00:00]} 4. Qxd4 {[%emt 0:00:21]} a6 {[%emt 0:02:01]} 5. c4 {[%emt 0:01:08]} Nf6 {[%emt 0:03:12]} 6. Nc3 {[%emt 0:00:23]} e5 {[%emt 0:01:36]} 7. Qd1 {[%emt 0:03:57]} h6 {[%emt 0:01:09]} 8. Bd3 {[%emt 0:00:22]} Be7 {[%emt 0:00:29]} 9. O-O {[%emt 0:07:36]} O-O {[%emt 0:00:35]} 10. h3 {[%emt 0:03:55]} Be6 {[%emt 0:04:07]} 11. Be3 {[%emt 0:00:23]} Nbd7 {[%emt 0:00:45]} 12. Qe2 {[%emt 0:03:58]} Rc8 {[%emt 0:01:05]} 13. Rac1 {[%emt 0:00:34]} Re8 {[%emt 0:03:02]} 14. Nd5 {[%emt 0:13:51]} Nc5 {[%emt 0:07:02]} 15. Bb1 {[%emt 0:00:28]} a5 {[%emt 0:14:48]} 16. Nd2 {[%emt 0:05:07]} Nfd7 {[%emt 0:02:11]} 17. Qh5 {[%emt 0:15:46]} Bg5 {[%emt 0:04:29]} 18. Bxg5 {[%emt 0:01:16]} Qxg5 {[%emt 0:00:10]} 19. Qxg5 {[%emt 0:00:09]} hxg5 {[%emt 0:00:04]} 20. Ne3 {[%emt 0:01:27]} Nf6 {[%emt 0:10:16]} 21. Rfd1 {[%emt 0:00:10]} Rc6 {[%emt 0:00:50]} 22. b3 {[%emt 0:04:39]} Nh5 {[%emt 0:02:19]} 23. Nf3 {[%emt 0:01:31]} f6 {[%emt 0:04:52]} 24. Rd2 {[%emt 0:02:08]} g6 {[%emt 0:03:03]} 25. Rcd1 {[%emt 0:08:15]} Rd8 {[%emt 0:00:47]} 26. Nh2 {[%emt 0:02:12]} Kf7 {[%emt 0:01:14]} 27. Nhg4 {[%emt 0:02:57]} Nf4 {[%emt 0:02:03]} 28. g3 {[%emt 0:07:43]} Bxg4 {[%emt 0:01:50]} 29. hxg4 {[%emt 0:00:06]} Nfe6 {[%emt 0:00:07]} 30. Kg2 {[%emt 0:00:04]} Nd4 {[%emt 0:01:03]} 31. Rh1 {[%emt 0:05:14]} Kg7 {[%emt 0:00:22]} 32. Nd5 {[%emt 0:00:11]} Rcc8 {[%emt 0:00:53]} 33. Rdd1 {[%emt 0:03:06]} Rh8 {[%emt 0:03:02]} 34. Ne7 {[%emt 0:00:33]} Ra8 {[%emt 0:04:05]} 35. Nd5 {[%emt 0:00:17]} Na6 {[%emt 0:01:05]} 36. Nc3 {[%emt 0:01:06]} Rxh1 {[%emt 0:05:44]} 37. Rxh1 {[%emt 0:00:11]} Nc5 {[%emt 0:00:57]} 38. Rd1 {[%emt 0:01:03]} Rh8 {[%emt 0:01:19]} 39. Nd5 {[%emt 0:01:59]} Kf7 {[%emt 0:01:52]} 40. Rf1 {[%emt 0:01:21]} Nce6 {[%emt 0:03:47]} 41. Bd3 {[%emt 0:03:24]} Kg7 {[%emt 0:02:43]} 42. Rd1 {[%emt 0:01:33]} Nc5 {[%emt 0:01:32]} 43. Bb1 {[%emt 0:01:31]} Na6 {[%emt 0:05:52]} 44. Nc3 {[%emt 0:00:14]} Nc7 {[%emt 0:03:47]} 45. Bd3 {[%emt 0:00:20]} Nce6 {[%emt 0:01:20]} 46. Nd5 {[%emt 0:00:45]} Nc5 {[%emt 0:00:31]} 47. Bb1 {[%emt 0:00:05]} Ra8 {[%emt 0:00:27]} 48. Nb6 {[%emt 0:03:40]} Rd8 {[%emt 0:01:44]} 49. Nd5 {[%emt 0:00:26]} Na6 {[%emt 0:01:22]} 50. Nc3 {[%emt 0:00:46]} Nb4 {[%emt 0:01:05]} 51. Nb5 {[%emt 0:01:26]} Nbc6 {[%emt 0:01:18]} 52. Nc3 {[%emt 0:00:07]} Ne6 {[%emt 0:02:31]} 53. Rd5 {[%emt 0:05:47]} Nc7 {[%emt 0:04:18]} 54. Rd1 {[%emt 0:00:18]} Nd4 {[%emt 0:00:28]} 55. Bd3 {[%emt 0:00:17]} Na6 {[%emt 0:01:11]} 56. Bb1 {[%emt 0:00:12]} Nc5 {[%emt 0:00:30]} 57. Nd5 {[%emt 0:00:23]} Rh8 {[%emt 0:00:46]} 1/2-1/2

[Event "SVK Extraliga 2019-20"]
[Site "Slovakia"]
[Date "2020.01.18"]
[Round "5.4"]
[White "Bagi, Mate"]
[Black "Walterova, Ema"]
[Result "1-0"]
[ECO "C77"]
[WhiteElo "2466"]
[BlackElo "1787"]
[Annotator "ChessBase"]
[PlyCount "73"]
[EventDate "2019.10.19"]
[EventType "team-tourn"]
[EventCountry "SVK"]
[SourceTitle "playchess.com"]
[Source "ChessBase"]
[SourceQuality "1"]
[WhiteTeam "Streda"]
[BlackTeam "Bratislava"]
[TimeControl "40/5400+30:1800+30"]

1. e4 {[%emt 0:00:00]} e5 {[%emt 0:00:00]} 2. Nf3 {[%emt 0:00:00]} Nc6 {[%emt 0:00:00]} 3. Bb5 {[%emt 0:02:10]} a6 {[%emt 0:01:15]} 4. Ba4 {[%emt 0:02:21]} Nf6 {[%emt 0:02:13]} 5. Nc3 {[%emt 0:00:40]} b5 {[%emt 0:09:27]} 6. Bb3 {[%emt 0:00:07]} Be7 {[%emt 0:00:31]} 7. a4 {[%emt 0:02:41]} b4 {[%emt 0:06:28]} 8. Nd5 {[%emt 0:00:22]} Bc5 {[%emt 0:11:17]} 9. O-O {[%emt 0:03:08]} d6 {[%emt 0:12:49]} 10. c3 {[%emt 0:02:27]} bxc3 {[%emt 0:08:43]} 11. bxc3 {[%emt 0:00:08]} Ba7 {[%emt 0:09:43]} 12. d4 {[%emt 0:10:01]} h6 {[%emt 0:01:49]} 13. Nxf6+ {[%emt 0:04:10]} Qxf6 {[%emt 0:00:53]} 14. Bd5 {[%emt 0:00:15]} Bd7 {[%emt 0:00:41]} 15. Be3 {[%emt 0:02:24]} O-O {[%emt 0:01:11]} 16. Rb1 {[%emt 0:01:01]} Rad8 {[%emt 0:07:12]} 17. h3 {[%emt 0:20:45]} Rfe8 {[%emt 0:05:54]} 18. Rb7 {[%emt 0:08:22]} Bb6 {[%emt 0:04:13]} 19. dxe5 {[%emt 0:00:37]} Nxe5 {[%emt 0:01:14]} 20. Bxb6 {[%emt 0:01:51]} cxb6 {[%emt 0:00:31]} 21. Nd4 {[%emt 0:04:04]} Ng6 {[%emt 0:05:41]} 22. f4 {[%emt 0:11:30]} Ne7 {[%emt 0:02:07]} 23. Bb3 {[%emt 0:03:06]} Kh8 {[%emt 0:03:28]} 24. Rxb6 {[%emt 0:01:54]} Nc8 {[%emt 0:00:20]} 25. Rb7 {[%emt 0:03:22]} Rxe4 {[%emt 0:01:32]} 26. Qf3 {[%emt 0:00:11]} Re7 {[%emt 0:01:15]} 27. a5 {[%emt 0:01:29]} Rde8 {[%emt 0:01:53]} 28. Qh5 {[%emt 0:02:08]} Qg6 {[%emt 0:00:46]} 29. Qxg6 {[%emt 0:00:44]} fxg6 {[%emt 0:00:09]} 30. Bc4 {[%emt 0:00:34]} Bf5 {[%emt 0:01:13]} 31. Bxa6 {[%emt 0:00:47]} Rxb7 {[%emt 0:00:26]} 32. Bxb7 {[%emt 0:00:05]} Ne7 {[%emt 0:00:34]} 33. Re1 {[%emt 0:00:23]} Bd7 {[%emt 0:00:09]} 34. a6 {[%emt 0:00:23]} Nf5 {[%emt 0:00:46]} 35. Rxe8+ {[%emt 0:00:08]} Bxe8 {[%emt 0:00:01]} 36. Nxf5 {[%emt 0:00:17]} gxf5 {[%emt 0:00:05]} 37. a7 {[%emt 0:00:05]} 1-0

[Event "SVK Extraliga 2019-20"]
[Site "Slovakia"]
[Date "2020.01.18"]
[Round "5.4"]
[White "Jurcik, Marian"]
[Black "Motuz, Karol"]
[Result "1-0"]
[ECO "C16"]
[WhiteElo "2456"]
[BlackElo "2368"]
[Annotator "ChessBase"]
[PlyCount "65"]
[EventDate "2019.10.19"]
[EventType "team-tourn"]
[EventCountry "SVK"]
[SourceTitle "playchess.com"]
[Source "ChessBase"]
[SourceQuality "1"]
[WhiteTeam "Zilina"]
[BlackTeam "Dubnica"]
[TimeControl "40/5400+30:1800+30"]

1. e4 {[%emt 0:00:00]} e6 {[%emt 0:00:00]} 2. d4 {[%emt 0:00:30]} d5 {[%emt 0:00:00]} 3. Nc3 {[%emt 0:00:56]} Bb4 {[%emt 0:01:07]} 4. e5 {[%emt 0:03:36]} Qd7 {[%emt 0:01:46]} 5. a3 {[%emt 0:06:51]} Bxc3+ {[%emt 0:04:16]} 6. bxc3 {[%emt 0:00:19]} b6 {[%emt 0:00:40]} 7. a4 {[%emt 0:02:22]} Ba6 {[%emt 0:09:20]} 8. Bxa6 {[%emt 0:01:14]} Nxa6 {[%emt 0:00:03]} 9. Qd3 {[%emt 0:00:18]} Nb8 {[%emt 0:01:26]} 10. Qg3 {[%emt 0:02:58]} f5 {[%emt 0:02:37]} 11. a5 {[%emt 0:04:50]} Nc6 {[%emt 0:03:51]} 12. axb6 {[%emt 0:02:22]} cxb6 {[%emt 0:00:17]} 13. Ne2 {[%emt 0:01:33]} Qf7 {[%emt 0:04:21]} 14. h4 {[%emt 0:07:37]} Nge7 {[%emt 0:07:28]} 15. h5 {[%emt 0:00:20]} Rg8 {[%emt 0:11:37]} 16. Qd3 {[%emt 0:03:07]} g5 {[%emt 0:11:25]} 17. hxg6 {[%emt 0:00:49]} Nxg6 {[%emt 0:04:46]} 18. Ng3 {[%emt 0:08:26]} Nf8 {[%emt 0:08:29]} 19. Nh5 {[%emt 0:04:20]} O-O-O {[%emt 0:02:11]} 20. g3 {[%emt 0:01:15]} Na5 {[%emt 0:04:26]} 21. Nf6 {[%emt 0:01:16]} Rh8 {[%emt 0:01:49]} 22. Qa6+ {[%emt 0:08:45]} Kb8 {[%emt 0:05:29]} 23. Bh6 {[%emt 0:25:52]} Nc4 {[%emt 0:03:56]} 24. Ke2 {[%emt 0:01:20]} Rc8 {[%emt 0:01:58]} 25. Qb5 {[%emt 0:01:35]} Rc7 {[%emt 0:04:53]} 26. Bxf8 {[%emt 0:01:00]} Rxf8 {[%emt 0:03:30]} 27. Rxh7 {[%emt 0:00:13]} Qxh7 {[%emt 0:01:01]} 28. Nxh7 {[%emt 0:00:07]} Rxh7 {[%emt 0:00:02]} 29. Qc6 {[%emt 0:02:30]} f4 {[%emt 0:00:31]} 30. gxf4 {[%emt 0:00:32]} Rxf4 {[%emt 0:00:36]} 31. Rg1 {[%emt 0:03:11]} Rhf7 {[%emt 0:01:01]} 32. Rg8+ {[%emt 0:00:27]} Rf8 {[%emt 0:00:12]} 33. Rxf8+ {[%emt 0:00:21]} 1-0

[Event "SVK Extraliga 2019-20"]
[Site "Slovakia"]
[Date "2020.01.18"]
[Round "5.4"]
[White "Matejovic, Juraj"]
[Black "Stohl, Igor"]
[Result "1/2-1/2"]
[ECO "B85"]
[WhiteElo "2216"]
[BlackElo "2473"]
[Annotator "ChessBase"]
[PlyCount "33"]
[EventDate "2019.10.19"]
[EventType "team-tourn"]
[EventCountry "SVK"]
[SourceTitle "playchess.com"]
[Source "ChessBase"]
[SourceQuality "1"]
[WhiteTeam "Dunajov"]
[BlackTeam "Modra"]
[WhiteTeamCountry "SVK"]
[BlackTeamCountry "SVK"]
[TimeControl "40/5400+30:1800+30"]

1. e4 {[%emt 0:00:00]} c5 {[%emt 0:00:00]} 2. Nf3 {[%emt 0:00:11]} e6 {[%emt 0:00:02]} 3. d4 {[%emt 0:01:23]} cxd4 {[%emt 0:00:49]} 4. Nxd4 {[%emt 0:00:11]} a6 {[%emt 0:00:06]} 5. Nc3 {[%emt 0:01:14]} d6 {[%emt 0:01:22]} 6. Be2 {[%emt 0:00:51]} Nf6 {[%emt 0:00:42]} 7. O-O {[%emt 0:00:56]} Be7 {[%emt 0:00:19]} 8. f4 {[%emt 0:01:44]} O-O {[%emt 0:00:18]} 9. a4 {[%emt 0:03:56]} Nc6 {[%emt 0:00:28]} 10. Be3 {[%emt 0:01:20]} Qc7 {[%emt 0:01:52]} 11. Kh1 {[%emt 0:01:38]} Nxd4 {[%emt 0:01:25]} 12. Qxd4 {[%emt 0:06:40]} Bd7 {[%emt 0:00:46]} 13. e5 {[%emt 0:22:15]} Ne8 {[%emt 0:01:33]} 14. Rad1 {[%emt 0:03:31]} Bc6 {[%emt 0:01:19]} 15. Bd3 {[%emt 0:24:21]} Rd8 {[%emt 0:07:05]} 16. Qa7 {[%emt 0:03:30]} Qc8 {[%emt 0:07:05]} 17. Bxa6 {[%emt 0:08:03]} 1/2-1/2

[Event "SVK Extraliga 2019-20"]
[Site "Slovakia"]
[Date "2020.01.18"]
[Round "5.5"]
[White "Piesik, Piotr"]
[Black "Petrik, Tomas"]
[Result "1-0"]
[ECO "E20"]
[WhiteElo "2419"]
[BlackElo "2450"]
[Annotator "ChessBase"]
[PlyCount "73"]
[EventDate "2019.10.19"]
[EventType "team-tourn"]
[EventCountry "SVK"]
[SourceTitle "playchess.com"]
[Source "ChessBase"]
[SourceQuality "1"]
[WhiteTeam "Dubnica"]
[BlackTeam "Zilina"]
[TimeControl "40/5400+30:1800+30"]

1. d4 {[%emt 0:00:00]} Nf6 {[%emt 0:00:00]} 2. c4 {[%emt 0:00:00]} e6 {[%emt 0:00:01]} 3. Nc3 {[%emt 0:00:07]} Bb4 {[%emt 0:00:09]} 4. f3 {[%emt 0:01:04]} d5 {[%emt 0:02:52]} 5. a3 {[%emt 0:00:35]} Be7 {[%emt 0:00:28]} 6. e4 {[%emt 0:01:34]} dxe4 {[%emt 0:02:00]} 7. fxe4 {[%emt 0:00:09]} e5 {[%emt 0:00:11]} 8. d5 {[%emt 0:00:08]} Bc5 {[%emt 0:00:13]} 9. Bg5 {[%emt 0:04:43]} O-O {[%emt 0:13:28]} 10. Nf3 {[%emt 0:00:59]} Bg4 {[%emt 0:01:49]} 11. h3 {[%emt 0:00:19]} Bxf3 {[%emt 0:00:51]} 12. Qxf3 {[%emt 0:00:06]} Nbd7 {[%emt 0:27:34]} 13. O-O-O {[%emt 0:03:29]} Bd4 {[%emt 0:10:46]} 14. Ne2 {[%emt 0:02:10]} c6 {[%emt 0:09:23]} 15. Nxd4 {[%emt 0:28:26]} exd4 {[%emt 0:00:08]} 16. Rxd4 {[%emt 0:00:05]} Qb6 {[%emt 0:06:09]} 17. Rd1 {[%emt 0:02:47]} Rfe8 {[%emt 0:02:11]} 18. Bxf6 {[%emt 0:05:22]} Nxf6 {[%emt 0:01:23]} 19. Bd3 {[%emt 0:00:06]} Nd7 {[%emt 0:07:52]} 20. Bc2 {[%emt 0:05:22]} Ne5 {[%emt 0:00:55]} 21. Qc3 {[%emt 0:00:47]} Qf2 {[%emt 0:06:20]} 22. Rd2 {[%emt 0:07:56]} Qf4 {[%emt 0:00:21]} 23. g3 {[%emt 0:05:44]} Qh6 {[%emt 0:00:03]} 24. c5 {[%emt 0:02:52]} Rad8 {[%emt 0:05:55]} 25. Kb1 {[%emt 0:02:14]} b6 {[%emt 0:00:25]} 26. Rhd1 {[%emt 0:06:29]} Rc8 {[%emt 0:00:57]} 27. d6 {[%emt 0:02:44]} Nd7 {[%emt 0:00:05]} 28. cxb6 {[%emt 0:02:12]} axb6 {[%emt 0:00:01]} 29. h4 {[%emt 0:00:28]} Re5 {[%emt 0:01:27]} 30. Rf2 {[%emt 0:01:25]} Rc5 {[%emt 0:00:18]} 31. Qd4 {[%emt 0:01:28]} Rf8 {[%emt 0:00:37]} 32. Bb3 {[%emt 0:02:27]} Ne5 {[%emt 0:00:35]} 33. Rdf1 {[%emt 0:01:14]} Qg6 {[%emt 0:00:30]} 34. d7 {[%emt 0:07:14]} Rd8 {[%emt 0:00:04]} 35. Qxe5 {[%emt 0:00:42]} Rxe5 {[%emt 0:00:26]} 36. Bxf7+ {[%emt 0:00:04]} Qxf7 {[%emt 0:01:00]} 37. Rxf7 {[%emt 0:00:06]} 1-0

[Event "SVK Extraliga 2019-20"]
[Site "Slovakia"]
[Date "2020.01.18"]
[Round "5.5"]
[White "Pacher, Milan"]
[Black "Likavsky, Tomas"]
[Result "1-0"]
[ECO "B43"]
[WhiteElo "2402"]
[BlackElo "2436"]
[Annotator "ChessBase"]
[PlyCount "47"]
[EventDate "2019.10.19"]
[EventType "team-tourn"]
[EventCountry "SVK"]
[SourceTitle "playchess.com"]
[Source "ChessBase"]
[SourceQuality "1"]
[WhiteTeam "Slovan"]
[BlackTeam "Podhajska"]
[TimeControl "40/5400+30:1800+30"]

1. e4 {[%emt 0:06:13]} c5 {[%emt 0:00:00]} 2. Nf3 {[%emt 0:00:04]} e6 {[%emt 0:01:09]} 3. d4 {[%emt 0:00:06]} cxd4 {[%emt 0:00:05]} 4. Nxd4 {[%emt 0:00:03]} a6 {[%emt 0:00:11]} 5. Nc3 {[%emt 0:00:34]} b5 {[%emt 0:00:34]} 6. Bd3 {[%emt 0:00:18]} Bb7 {[%emt 0:05:15]} 7. O-O {[%emt 0:01:01]} Nf6 {[%emt 0:08:15]} 8. e5 {[%emt 0:08:49]} Nd5 {[%emt 0:00:53]} 9. Nxd5 {[%emt 0:01:03]} Bxd5 {[%emt 0:00:01]} 10. Re1 {[%emt 0:03:54]} Nc6 {[%emt 0:03:03]} 11. Be4 {[%emt 0:07:48]} Bxe4 {[%emt 0:11:59]} 12. Rxe4 {[%emt 0:00:03]} Qc7 {[%emt 0:00:17]} 13. Bf4 {[%emt 0:01:40]} Bc5 {[%emt 0:03:44]} 14. Nxc6 {[%emt 0:04:40]} Qxc6 {[%emt 0:03:39]} 15. Qd3 {[%emt 0:00:46]} h6 {[%emt 0:11:55]} 16. Rd1 {[%emt 0:09:19]} Ke7 {[%emt 0:04:10]} 17. b4 {[%emt 0:02:25]} Bb6 {[%emt 0:00:08]} 18. c4 {[%emt 0:00:25]} Rhd8 {[%emt 0:06:29]} 19. c5 {[%emt 0:00:54]} Bc7 {[%emt 0:00:04]} 20. Rd4 {[%emt 0:00:20]} a5 {[%emt 0:02:29]} 21. a3 {[%emt 0:08:10]} axb4 {[%emt 0:00:58]} 22. axb4 {[%emt 0:00:02]} g6 {[%emt 0:09:16]} 23. Rd6 {[%emt 0:01:47]} Bxd6 {[%emt 0:00:33]} 24. exd6+ {[%emt 0:00:11]} 1-0

[Event "SVK Extraliga 2019-20"]
[Site "Slovakia"]
[Date "2020.01.18"]
[Round "5.5"]
[White "Plachetka, Jan"]
[Black "Mrva, Martin"]
[Result "1/2-1/2"]
[ECO "A48"]
[WhiteElo "2301"]
[BlackElo "2395"]
[Annotator "ChessBase"]
[PlyCount "103"]
[EventDate "2019.10.19"]
[EventType "team-tourn"]
[EventCountry "SVK"]
[SourceTitle "playchess.com"]
[Source "ChessBase"]
[SourceQuality "1"]
[WhiteTeam "Liptovska"]
[BlackTeam "Snina"]
[TimeControl "40/5400+30:1800+30"]

1. d4 {[%emt 0:02:01]} Nf6 {[%emt 0:00:00]} 2. Nf3 {[%emt 0:00:11]} g6 {[%emt 0:00:00]} 3. Bg5 {[%emt 0:00:14]} Bg7 {[%emt 0:00:00]} 4. Nbd2 {[%emt 0:00:11]} h6 {[%emt 0:00:17]} 5. Bh4 {[%emt 0:00:10]} d6 {[%emt 0:00:20]} 6. e3 {[%emt 0:01:47]} g5 {[%emt 0:00:29]} 7. Bg3 {[%emt 0:00:05]} Nh5 {[%emt 0:00:07]} 8. Bd3 {[%emt 0:01:00]} Nc6 {[%emt 0:06:14]} 9. c3 {[%emt 0:00:46]} Nxg3 {[%emt 0:04:33]} 10. hxg3 {[%emt 0:00:28]} e5 {[%emt 0:00:08]} 11. Qc2 {[%emt 0:01:49]} exd4 {[%emt 0:06:33]} 12. exd4 {[%emt 0:02:53]} Qe7+ {[%emt 0:06:14]} 13. Kf1 {[%emt 0:00:51]} Be6 {[%emt 0:00:22]} 14. Re1 {[%emt 0:01:20]} d5 {[%emt 0:00:11]} 15. Nb3 {[%emt 0:03:17]} O-O-O {[%emt 0:08:44]} 16. Nc5 {[%emt 0:01:50]} Rd6 {[%emt 0:00:10]} 17. Qb3 {[%emt 0:10:12]} Nd8 {[%emt 0:04:02]} 18. Bf5 {[%emt 0:05:55]} Qf6 {[%emt 0:19:58]} 19. Bxe6+ {[%emt 0:00:48]} fxe6 {[%emt 0:00:04]} 20. Ne5 {[%emt 0:00:57]} Rf8 {[%emt 0:02:26]} 21. f3 {[%emt 0:01:10]} Qf5 {[%emt 0:03:37]} 22. g4 {[%emt 0:02:02]} Qh7 {[%emt 0:00:10]} 23. Qa4 {[%emt 0:09:34]} a6 {[%emt 0:10:39]} 24. Kf2 {[%emt 0:04:57]} Bh8 {[%emt 0:03:19]} 25. Re2 {[%emt 0:01:07]} Rg8 {[%emt 0:09:00]} 26. Qd1 {[%emt 0:04:47]} Re8 {[%emt 0:01:31]} 27. Qd3 {[%emt 0:00:47]} Qxd3 {[%emt 0:01:06]} 28. Ncxd3 {[%emt 0:01:43]} Bg7 {[%emt 0:00:12]} 29. g3 {[%emt 0:00:54]} Rf8 {[%emt 0:03:05]} 30. Rhe1 {[%emt 0:03:17]} b6 {[%emt 0:00:53]} 31. Kg2 {[%emt 0:01:11]} Nb7 {[%emt 0:00:53]} 32. f4 {[%emt 0:01:26]} gxf4 {[%emt 0:01:47]} 33. gxf4 {[%emt 0:00:08]} c5 {[%emt 0:00:14]} 34. Ng6 {[%emt 0:02:52]} Re8 {[%emt 0:04:06]} 35. f5 {[%emt 0:09:02]} cxd4 {[%emt 0:00:09]} 36. cxd4 {[%emt 0:00:07]} Bxd4 {[%emt 0:00:08]} 37. Ndf4 {[%emt 0:03:34]} Nc5 {[%emt 0:01:12]} 38. b4 {[%emt 0:01:22]} Ne4 {[%emt 0:00:53]} 39. Nxe6 {[%emt 0:00:22]} Bf6 {[%emt 0:00:45]} 40. Rc1+ {[%emt 0:09:25]} Nc3 {[%emt 0:00:15]} 41. Ngf4 {[%emt 0:35:09]} Kd7 {[%emt 0:33:34]} 42. Rd2 {[%emt 0:05:37]} Rc8 {[%emt 0:01:47]} 43. Kf3 {[%emt 0:00:00]} Ne4 {[%emt 0:00:00]} 44. Rdc2 {[%emt 0:00:00]} Rxc2 {[%emt 0:00:00]} 45. Rxc2 {[%emt 0:00:00]} Rc6 {[%emt 0:00:00]} 46. Rxc6 {[%emt 0:00:00]} Kxc6 {[%emt 0:00:00]} 47. Ke3 {[%emt 0:00:00]} Kd6 {[%emt 0:00:00]} 48. Nxd5 {[%emt 0:00:00]} Kxd5 {[%emt 0:00:00]} 49. Nf4+ {[%emt 0:00:00]} Ke5 {[%emt 0:00:00]} 50. Nd3+ {[%emt 0:00:00]} Kd5 {[%emt 0:00:00]} 51. Nf4+ {[%emt 0:00:00]} Ke5 {[%emt 0:00:00]} 52. Nd3+ {[%emt 0:00:00]} 1/2-1/2

[Event "SVK Extraliga 2019-20"]
[Site "Slovakia"]
[Date "2020.01.18"]
[Round "5.5"]
[White "Jablonicky, Martin"]
[Black "Kantorik, Marian"]
[Result "1-0"]
[ECO "B05"]
[WhiteElo "2258"]
[BlackElo "2204"]
[Annotator "ChessBase"]
[PlyCount "85"]
[EventDate "2019.10.19"]
[EventType "team-tourn"]
[EventCountry "SVK"]
[SourceTitle "playchess.com"]
[Source "ChessBase"]
[SourceQuality "1"]
[WhiteTeam "Modra "]
[BlackTeam "Dunajov"]
[WhiteTeamCountry "SVK"]
[BlackTeamCountry "SVK"]
[TimeControl "40/5400+30:1800+30"]

1. e4 {[%emt 0:00:00]} Nf6 {[%emt 0:00:00]} 2. e5 {[%emt 0:00:00]} Nd5 {[%emt 0:00:00]} 3. d4 {[%emt 0:00:00]} d6 {[%emt 0:00:00]} 4. Nf3 {[%emt 0:00:02]} Bg4 {[%emt 0:00:09]} 5. h3 {[%emt 0:01:30]} Bh5 {[%emt 0:00:41]} 6. Be2 {[%emt 0:00:06]} e6 {[%emt 0:00:11]} 7. O-O {[%emt 0:00:40]} Be7 {[%emt 0:00:07]} 8. c4 {[%emt 0:01:22]} Nb6 {[%emt 0:00:05]} 9. exd6 {[%emt 0:05:01]} cxd6 {[%emt 0:00:17]} 10. a4 {[%emt 0:06:26]} Nc6 {[%emt 0:04:30]} 11. b3 {[%emt 0:03:40]} a5 {[%emt 0:09:25]} 12. Nc3 {[%emt 0:01:18]} O-O {[%emt 0:08:30]} 13. Bf4 {[%emt 0:08:45]} d5 {[%emt 0:10:45]} 14. Nb5 {[%emt 0:00:54]} Bxf3 {[%emt 0:03:25]} 15. Bxf3 {[%emt 0:00:20]} Qd7 {[%emt 0:03:44]} 16. Rc1 {[%emt 0:23:46]} Bf6 {[%emt 0:04:39]} 17. Nc7 {[%emt 0:12:06]} Rac8 {[%emt 0:03:51]} 18. cxd5 {[%emt 0:00:05]} Nxd4 {[%emt 0:07:27]} 19. dxe6 {[%emt 0:03:11]} Nxf3+ {[%emt 0:03:12]} 20. Qxf3 {[%emt 0:00:09]} fxe6 {[%emt 0:00:05]} 21. Rfd1 {[%emt 0:03:38]} Bd4 {[%emt 0:06:10]} 22. Qe4 {[%emt 0:07:21]} e5 {[%emt 0:00:50]} 23. Bxe5 {[%emt 0:01:02]} Bxf2+ {[%emt 0:01:13]} 24. Kh1 {[%emt 0:00:13]} Qf5 {[%emt 0:00:57]} 25. Qe2 {[%emt 0:04:43]} Rf7 {[%emt 0:05:53]} 26. Bh2 {[%emt 0:10:01]} h5 {[%emt 0:06:32]} 27. Nb5 {[%emt 0:03:38]} Rxc1 {[%emt 0:04:47]} 28. Rxc1 {[%emt 0:00:00]} Bc5 {[%emt 0:00:30]} 29. Bd6 {[%emt 0:02:21]} Bxd6 {[%emt 0:05:56]} 30. Nxd6 {[%emt 0:00:01]} Qf4 {[%emt 0:00:07]} 31. Rd1 {[%emt 0:01:58]} Rd7 {[%emt 0:04:45]} 32. Qe8+ {[%emt 0:00:43]} Qf8 {[%emt 0:00:24]} 33. Qe6+ {[%emt 0:00:31]} Kh7 {[%emt 0:01:08]} 34. Qe5 {[%emt 0:00:52]} g6 {[%emt 0:00:17]} 35. Rd4 {[%emt 0:00:12]} Re7 {[%emt 0:05:27]} 36. Rf4 {[%emt 0:00:16]} Qg7 {[%emt 0:01:26]} 37. Qxa5 {[%emt 0:00:57]} Qa1+ {[%emt 0:00:03]} 38. Kh2 {[%emt 0:00:14]} Qc1 {[%emt 0:00:44]} 39. Qg5 {[%emt 0:00:37]} Qc7 {[%emt 0:00:33]} 40. Qxe7+ {[%emt 0:00:37]} Qxe7 {[%emt 0:00:08]} 41. Rf7+ {[%emt 0:30:04]} Qxf7 {[%emt 0:30:25]} 42. Nxf7 {[%emt 0:00:01]} Nd7 {[%emt 0:00:00]} 43. a5 {[%emt 0:00:00]} 1-0